[Event "Israel National League 2024"]
[Site "Israel"]
[Date "2024.02.09"]
[Round "5.11"]
[White "Bronstein, Or"]
[Black "Mikhalevski, Victor"]
[Result "1/2-1/2"]
[ECO "D87"]
[WhiteElo "2441"]
[BlackElo "2524"]
[Annotator "TA"]
[PlyCount "88"]
[EventDate "2024.01.07"]
[EventType "team-tourn"]
[EventCountry "ISR"]
[SourceTitle "playchess.com"]
[Source "ChessBase"]
[SourceQuality "1"]
[TimeControl "40/5400+30:1800+30"]

{[%evp 19,88,9,20,0,0,-13,0,0,15,19,21,-55,-43,-65,-52,-56,25,12,0,0,13,22,17,9,9,16,15,19,14,0,0,0,77,69,71,71,82,78,179,171,175,169,174,173,176,172,187,171,184,172,172,172,172,172,158,172,159,89,173,174,166,135,144,114,116,0,125,0,101,70,82]} 1. d4 {[%emt 0:00:03]} Nf6 {[%emt 0:00:23]} 2. c4 {[%emt 0:01:34]} g6 {[%emt 0:01:31]} 3. Nc3 {[%emt 0:01:40]} d5 {[%emt 0:00:12]} 4. cxd5 {[%emt 0:00:07]} Nxd5 {[%emt 0:00:05]} 5. e4 {[%emt 0:00:06]} Nxc3 {[%emt 0:00:14]} 6. bxc3 {[%emt 0:00:03]} Bg7 {[%emt 0:00:08]} 7. Bc4 {[%emt 0:00:08]} c5 {[%emt 0:00:11]} 8. Ne2 {[%emt 0:00:06]} Nc6 {[%emt 0:00:12]} 9. Be3 {[%emt 0:00:08]} O-O {[%emt 0:00:10]} 10. O-O {[%emt 0:00:04]} b6 {[%emt 0:00:13]} 11. Qd2 {[%emt 0:03:35]} Bb7 {[%emt 0:00:32]} 12. d5 {[%emt 0:01:00]} Ne5 {[%emt 0:03:31]} 13. Bb3 {[%emt 0:00:36] The position is equal.} c4 {[%emt 0:00:12]} 14. Bc2 {[%emt 0:08:19]} e6 {[%emt 0:00:18]} 15. d6 {[%emt 0:39:46]} (15. dxe6 $11 fxe6 16. Nd4) 15... Qd7 {[%emt 0:10:03]} 16. Rad1 {[%emt 0:01:48]} Qc6 {[%emt 0:02:41]} 17. Bh6 {[%emt 0:08:39]} Rad8 {[%emt 0:04:26]} (17... Nd3 $15 18. Bxg7 Kxg7) 18. Bxg7 {[%emt 0:05:26]} Kxg7 {[%emt 0:00:10]} 19. Nd4 {[%emt 0:07:54]} Qxd6 {[%emt 0:07:47][%cal Oe5d3] [#]} 20. Nf5+ $1 {[%emt 0:01:27]} exf5 {[%emt 0:00:06]} 21. Qxd6 {[%emt 0:00:04]} Rxd6 {[%emt 0:00:04]} 22. Rxd6 {[%emt 0:00:06]} fxe4 {[%emt 0:00:09]} 23. Rfd1 {[%emt 0:03:21]} f5 {[%emt 0:04:29]} 24. a4 {[%emt 0:03:03][%cal Oa4a5]} Re8 {[%emt 0:18:46]} 25. a5 {[%emt 0:02:43]} (25. Rd7+ Nxd7 26. Rxd7+ Kf6 27. Rxb7 Rd8) 25... b5 {[%emt 0:00:21] [#]} (25... Bc6 $1 $11) 26. Rd7+ $1 $16 {[%emt 0:08:58]} Nxd7 {[%emt 0:00:12]} 27. Rxd7+ {[%emt 0:00:02]} Kf6 {[%emt 0:00:25]} 28. Rxb7 {[%emt 0:00:01][%cal Og1f1][%mdl 4096] Endgame. Threatens to win with Kf1! KRB-KR. White is more active.} Rd8 {[%emt 0:00:48]} (28... e3 $16 {was worth a try.} 29. fxe3 (29. Rxb5 e2 30. h3 e1=Q+ 31. Kh2 Qxf2 32. Rb1 Re2) 29... Rxe3) 29. Rxb5 $18 {[%emt 0:00:20]} (29. Rxa7 Rd2 30. Rb7 (30. Ra6+ Ke7 $17) 30... Rxc2 $11) 29... Rd2 {[%emt 0:00:08]} 30. Ba4 {[%emt 0:02:39]} Ra2 {[%emt 0:06:08] ( -> ...Ra1+)} 31. Bd1 {[%emt 0:00:10]} Ra1 {[%emt 0:00:15]} 32. Rd5 {[%emt 0:00:02]} Rc1 {[%emt 0:00:36]} 33. Kf1 {[%emt 0:00:51]} Rxc3 {[%emt 0:00:22]} 34. Ke2 {[%emt 0:01:57]} Ra3 {[%emt 0:00:11]} 35. Rc5 {[%emt 0:00:41]} c3 {[%emt 0:05:19]} 36. g3 {[%emt 0:00:18]} Ke6 {[%emt 0:00:36]} 37. Bc2 {[%emt 0:00:41]} Kd6 {[%emt 0:00:06]} 38. Rc4 {[%emt 0:00:21]} ({White should try} 38. Rc8) 38... Rxa5 {[%emt 0:08:32]} (38... Kd5 $16 39. Ra4 Rxa4 40. Bxa4 Kc4) 39. Rxc3 {[%emt 0:00:01]} Ra1 {[%emt 0:00:06]} 40. h4 {[%emt 0:01:01]} Rc1 {[%emt 0:01:34]} 41. Kd2 {[%emt 0:02:50]} Rf1 {[%emt 0:00:50]} 42. Ke2 {[%emt 0:06:46]} Rc1 {[%emt 0:00:13]} 43. Kd2 {[%emt 0:13:49]} Rf1 {[%emt 0:00:13]} 44. Ke3 {[%emt 0:00:12] Black must now prevent Bb3.} Re1+ $1 {[%emt 0:02:18] Weighted Error Value: White=0.21 (precise) /Black=0.16 (very precise) .  Mistake:       	White=2     	Black=4      Inaccurate:     	White=1     	---        OK:         	White=14    	Black=13     Best:        	White=3     	Black=3      Strong:       	---       	Black=1      Brilliant:      	White=2     	---} 1/2-1/2

[Event "Israel National League 2024"]
[Site "Israel"]
[Date "2024.02.09"]
[Round "5.12"]
[White "Postny, Evgeny"]
[Black "Veinberg, Nimrod"]
[Result "0-1"]
[ECO "E06"]
[WhiteElo "2597"]
[BlackElo "2411"]
[Annotator "TA"]
[PlyCount "80"]
[EventDate "2024.01.07"]
[EventType "team-tourn"]
[EventCountry "ISR"]
[SourceTitle "playchess.com"]
[Source "ChessBase"]
[SourceQuality "1"]
[TimeControl "40/5400+30:1800+30"]

{[%evp 13,80,14,13,8,2,0,5,-2,3,0,13,6,22,18,22,19,15,10,13,15,39,14,12,19,16,14,22,21,18,20,16,13,12,13,17,0,0,-98,-98,-98,-102,-95,-95,-177,-166,-606,-569,-645,-486,-6170,-119,-110,-107,-395,-393,-413,-398,-437,-437,-434,-434,-400,-301,-294,-293,-29967,-574,-29977,-29978]} 1. c4 {[%emt 0:00:04]} e6 {[%emt 0:00:36]} 2. g3 {[%emt 0:00:13]} d5 {[%emt 0:00:13]} 3. Bg2 {[%emt 0:00:06]} Nf6 {[%emt 0:00:11]} 4. Nf3 {[%emt 0:00:20]} Be7 {[%emt 0:01:41]} 5. d4 {[%emt 0:00:30]} O-O {[%emt 0:00:26]} 6. Qc2 {[%emt 0:00:36]} c5 {[%emt 0:00:55]} 7. O-O {[%emt 0:00:30]} cxd4 {[%emt 0:00:34]} 8. Nxd4 {[%emt 0:00:07]} e5 {[%emt 0:00:32]} 9. Nf5 {[%emt 0:00:24]} d4 {[%emt 0:00:30]} 10. Nxe7+ {[%emt 0:00:19] The position is equal.} Qxe7 {[%emt 0:00:06]} 11. Bg5 {[%emt 0:05:43]} Nbd7 {[%emt 0:12:07]} 12. e3 {[%emt 0:06:25]} h6 {[%emt 0:01:08]} 13. Bxf6 {[%emt 0:02:40]} Nxf6 {[%emt 0:02:01]} 14. exd4 {[%emt 0:00:25]} exd4 {[%emt 0:00:09]} 15. Nd2 {[%emt 0:01:43]} Rd8 {[%emt 0:08:15]} 16. Rfe1 {[%emt 0:06:42]} Qc7 {[%emt 0:03:05]} 17. Rad1 {[%emt 0:14:34]} Bg4 {[%emt 0:01:07]} 18. Nf3 {[%emt 0:09:10]} Rac8 {[%emt 0:06:12]} 19. b3 {[%emt 0:01:33]} b5 {[%emt 0:06:01]} 20. Rxd4 {[%emt 0:04:09]} Rxd4 {[%emt 0:00:46]} 21. Nxd4 {[%emt 0:00:07]} bxc4 {[%emt 0:00:35]} 22. Nc6 {[%emt 0:02:32]} Be6 {[%emt 0:11:57]} 23. b4 {[%emt 0:19:34]} Kh8 {[%emt 0:06:01]} 24. Qa4 {[%emt 0:04:31]} Qb6 {[%emt 0:03:11]} 25. Nxa7 {[%emt 0:04:47] [#]} (25. b5 $11) 25... Ng4 $1 $17 {[%emt 0:02:52]} 26. Rf1 {[%emt 0:02:56] [#]} (26. Re2 Rd8) 26... Nxf2 $1 {[%emt 0:06:21]} 27. Rxf2 {[%emt 0:00:05]} (27. Nxc8 $2 Nh3+ 28. Kh1 Qg1+ 29. Rxg1 Nf2#) 27... Rd8 {[%emt 0:00:05]} 28. Be4 {[%emt 0:10:36]} (28. Nb5 $17 Rd2 (28... Bd7 29. Qa7 $11) 29. Qa8+ Kh7 30. Qe4+ g6 31. Qe1 Rxf2 (31... Rxa2 32. Nc3 $18) 32. Qxf2 Qxb5 33. Bh3) 28... Qe3 $19 {[%emt 0:05:18][%cal Oe6h3]} 29. Qc2 {[%emt 0:00:46] Hoping for Nc6.} Bg4 {[%emt 0:06:03] aiming for ...Rd1+.} (29... Qxa7 $2 30. a4 $19) 30. Kg2 {[%emt 0:01:00]} Rd1 {[%emt 0:01:18] White must now prevent ...Qe1.} 31. Qxc4 {[%emt 0:02:17]} (31. Rxf7 $2 Qg1#) (31. Nb5 $142 Qe1 32. Qxd1 Bxd1 33. Nd6) 31... Rd4 $2 $40 {[%emt 0:00:22][%mdl 128] Black goes for the king.} (31... Qxa7 $2 32. Qxf7 (32. Rxf7 $2 Rg1#) 32... Qxf7 33. Rxf7 $18) (31... Rd2 $1 $19 32. Rxd2 Qxd2+ 33. Kh1 Bh3) 32. Qc2 $17 {[%emt 0:00:26]} Rxe4 {[%emt 0:00:28]} (32... Qxe4+ 33. Qxe4 Rxe4 34. Rb2 $18 (34. Rxf7 Rxb4 35. Nc6 Ra4 $11)) 33. Nc6 {[%emt 0:00:10][%mdl 8192] Inhibits Rd4. This move loses the game for White.} (33. Nb5 $17) 33... Re8 $1 $19 {[%emt 0:02:25] ...Qe6 is the strong threat.} 34. b5 {[%emt 0:00:20][%cal Oh2h4] [#]} Qe6 $1 {[%emt 0:00:26]} 35. h4 {[%emt 0:01:00]} Qd5+ {[%emt 0:00:08]} 36. Kh2 {[%emt 0:00:20]} Re1 $1 {[%emt 0:00:19][%csl Gd5][%cal Re1h1]} (36... Qxb5 37. Nd4 Qe5 38. Qd3 $15) 37. Rg2 {[%emt 0:00:04]} Qxb5 {[%emt 0:00:57] ( -> ...Qf1)} 38. Qf2 {[%emt 0:01:15]} Rf1 {[%emt 0:02:07]} ({Don't play} 38... Qb1 39. Rg1 Rxg1 40. Qxg1 $17) 39. Qd4 {[%emt 0:00:15]} (39. Qc2 $19) 39... Qxc6 {[%emt 0:01:22]} (39... Qb1 $142 40. Qg1 Rxg1 41. Rxg1 Qc2+ (41... Qxa2+ $2 42. Rg2 $19) 42. Rg2 Qxc6 43. Rf2 Bf3 44. h5 Qd5 (44... Bxh5 $2 45. a3 $19) 45. Rb2 Qxh5+ (45... Bxh5 $2 46. Rf2 $19) 46. Kg1 Qc5+ 47. Kf1 Qc3 (47... Qc1+ {leads to mate.} 48. Kf2 Bg4 49. Rb8+ Kh7 50. Rd8 Qc5+ 51. Kf1 Qe3 52. Rh8+ Kxh8 53. Kg2 Qe2+ 54. Kg1 Bf3 55. a4 Qg2#) 48. Rb8+ Kh7 49. Kf2 Bg4 50. Rd8 Qf3+ 51. Kg1 Qe3+ (51... Qxg3+ 52. Kf1 Qe3 53. Kg2 Bf3+ 54. Kh2 Qf2+ 55. Kh3 Qg2+ 56. Kh4 Qh2#) 52. Kg2 Qe2+ 53. Kg1 Bf3 (53... Qxa2 {is a self mate.} 54. Kf1 Qe2+ 55. Kg1 Bf3 56. Rh8+ Kxh8 57. g4 Qg2#) 54. Rh8+ Kxh8 55. a4 Qg2#) 40. Qxg4 {[%emt 0:00:10] [#]} Qc1 $1 {[%emt 0:00:27] Weighted Error Value: White=0.68/Black=0.35.  Loses game:     	White=1     	---        Mistake:       	White=4     	Black=1      Inaccurate:     	White=1     	---        OK:         	White=14    	Black=9      Best:        	White=5     	Black=3      Strong:       	---       	Black=4      Brilliant:      	---       	Black=1} 0-1

[Event "Israel National League 2024"]
[Site "Israel"]
[Date "2024.02.09"]
[Round "5.13"]
[White "Kochavi, Ori"]
[Black "Galperin, Platon"]
[Result "1/2-1/2"]
[ECO "B47"]
[WhiteElo "2428"]
[BlackElo "2556"]
[Annotator "RC"]
[PlyCount "52"]
[EventDate "2024.01.07"]
[EventType "team-tourn"]
[EventCountry "ISR"]
[SourceTitle "playchess.com"]
[Source "ChessBase"]
[SourceQuality "1"]
[TimeControl "40/5400+30:1800+30"]

1. e4 {[%emt 0:02:13]} c5 {[%emt 0:00:09]} 2. Nf3 {[%emt 0:00:47]} e6 {[%emt 0:00:07]} 3. d4 {[%emt 0:00:02]} cxd4 {[%emt 0:00:05]} 4. Nxd4 {[%emt 0:00:02]} Nc6 {[%emt 0:00:06]} 5. Nc3 {[%emt 0:01:48]} Qc7 {[%emt 0:00:24]} 6. g3 {[%emt 0:04:28]} a6 {[%emt 0:01:33]} 7. Bg2 {[%emt 0:00:04]} Nf6 {[%emt 0:00:08]} 8. O-O {[%emt 0:00:17]} Nxd4 {[%emt 0:00:06]} 9. Qxd4 {[%emt 0:00:05]} Bc5 {[%emt 0:00:05]} 10. Bf4 {[%emt 0:00:49]} d6 {[%emt 0:00:05]} 11. Qd2 {[%emt 0:00:04]} h6 {[%emt 0:00:10]} 12. Rad1 {[%emt 0:00:05]} e5 {[%emt 0:00:05]} 13. Be3 {[%emt 0:00:03]} Bxe3 {[%emt 0:00:09]} 14. fxe3 {[%emt 0:07:33]} Be6 {[%emt 0:01:42]} 15. Qxd6 {[%emt 0:02:42]} Rc8 {[%emt 0:07:41]} 16. Qxc7 {[%emt 0:19:42]} Rxc7 {[%emt 0:00:32]} 17. Rd2 {[%emt 0:00:03]} Ke7 {[%emt 0:33:58]} 18. Nd5+ {[%emt 0:03:07]} Bxd5 {[%emt 0:00:12]} 19. exd5 {[%emt 0:00:05]} Ne8 {[%emt 0:00:04]} 20. e4 {[%emt 0:16:29]} Nd6 {[%emt 0:00:06]} 21. c3 {[%emt 0:00:07]} Rc4 {[%emt 0:14:58]} 22. Re1 {[%emt 0:02:15]} f6 {[%emt 0:08:40]} 23. Kf2 {[%emt 0:01:28]} b5 {[%emt 0:00:52]} 24. Kf3 {[%emt 0:03:31]} a5 {[%emt 0:07:08]} 25. Bf1 {[%emt 0:10:15]} Rc5 {[%emt 0:05:27]} 26. h4 {[%emt 0:05:51]} Rb8 {[%emt 0:08:13]} 1/2-1/2

[Event "Israel National League 2024"]
[Site "Israel"]
[Date "2024.02.09"]
[Round "5.14"]
[White "Sutovsky, Emil"]
[Black "Ben Ari, Yannay"]
[Result "1/2-1/2"]
[ECO "B51"]
[WhiteElo "2597"]
[BlackElo "2417"]
[Annotator "TA"]
[PlyCount "126"]
[EventDate "2024.01.07"]
[EventType "team-tourn"]
[EventCountry "ISR"]
[SourceTitle "playchess.com"]
[Source "ChessBase"]
[SourceQuality "1"]
[TimeControl "40/5400+30:1800+30"]

{[%evp 40,126,41,31,25,29,50,44,43,13,92,87,94,100,105,75,71,0,0,0,93,41,38,47,68,72,70,62,56,49,75,77,77,74,93,11,10,0,0,0,36,18,39,8,7,2,8,0,0,0,0,0,0,0,0,0,0,5,8,0,0,0,34,0,0,0,0,0,0,0,0,0,0,0,0,0,0,0,0,0,0,0,0,0,0,0,0,0,0]} 1. e4 {[%emt 0:00:03]} c5 {[%emt 0:02:13]} 2. Nf3 {[%emt 0:00:06]} d6 {[%emt 0:00:09]} 3. Bb5+ {[%emt 0:00:21]} Nd7 {[%emt 0:00:06]} 4. c4 {[%emt 0:00:13]} Ngf6 {[%emt 0:01:42]} 5. Nc3 {[%emt 0:00:05]} g6 {[%emt 0:10:18]} 6. d4 {[%emt 0:00:52] B51: Sicilian: Moscow Variation (3 Bb5+) without 3...Bd7.} cxd4 {[%emt 0:00:10]} 7. Nxd4 {[%emt 0:01:51]} Bg7 {[%emt 0:00:10]} 8. O-O {[%emt 0:00:49]} O-O {[%emt 0:04:54]} 9. Bxd7 {[%emt 0:00:03]} Bxd7 {[%emt 0:00:10]} 10. Qd3 {[%emt 0:00:04]} a6 {[%emt 0:03:12]} 11. a4 {[%emt 0:00:17]} Ng4 {[%emt 0:13:05]} 12. Nf3 {[%emt 0:00:09]} Rc8 {[%emt 0:07:56]} 13. h3 {[%emt 0:05:29]} Nf6 {[%emt 0:02:35]} 14. Be3 {[%emt 0:07:03]} Qa5 $146 {[%emt 0:00:58]} ({Predecessor:} 14... Be6 15. Nd2 Nd7 16. Nd5 Nc5 17. Bxc5 dxc5 18. Qc2 Bd7 19. a5 Bc6 20. Nb6 Rc7 {0-1 Ameir,M (2352)-Saric,I (2645) Mediterranean-ch 11th 2021 (2)}) 15. Nd2 {[%emt 0:09:59]} Be6 {[%emt 0:04:57]} 16. Bd4 {[%emt 0:13:08]} Rfd8 {[%emt 0:22:04]} 17. Qe3 {[%emt 0:25:02]} Qb4 {[%emt 0:09:20]} 18. a5 {[%emt 0:08:28]} Nd7 {[%emt 0:02:52]} 19. Bxg7 {[%emt 0:02:11]} Kxg7 {[%emt 0:00:02]} 20. Qd4+ {[%emt 0:05:16]} Kg8 {[%emt 0:02:43]} 21. f4 {[%emt 0:03:37]} Qc5 {[%emt 0:05:08]} (21... Bxc4 22. Ra4 Qc5 (22... e5 $2 23. Qe3 $18) 23. Qxc5 (23. Rxc4 Qxa5 24. Rxc8 Rxc8 $18) 23... Rxc5 24. Nxc4 $18 (24. Rxc4 Rxc4 25. Nxc4 Kf8 $18)) (21... Qxb2 $2 22. Rfb1 Qc2 23. Ra2 $18 (23. Rxb7 Ne5 $11) (23. Rxb7 Rb8 $11)) 22. Qxc5 {[%emt 0:00:06]} dxc5 {[%emt 0:00:36]} 23. Nd5 {[%emt 0:09:06]} Kf8 {[%emt 0:01:00]} 24. Rf3 {[%emt 0:00:05]} Nb8 {[%emt 0:03:18]} (24... f5 $11) 25. Rb3 $16 {[%emt 0:00:01]} Rd7 {[%emt 0:01:45] [#]} 26. Nf3 $1 {[%emt 0:02:20]} Bxd5 {[%emt 0:00:02]} 27. cxd5 {[%emt 0:00:48]} Rdc7 {[%emt 0:01:00]} 28. e5 {[%emt 0:01:20]} (28. Rc3 $16) 28... Rd8 $11 {[%emt 0:00:11]} 29. Rd1 {[%emt 0:00:43]} Rcd7 {[%emt 0:01:24]} (29... Nc6 $11) 30. Ng5 {[%emt 0:01:26]} (30. Rbd3 $16) 30... c4 {[%emt 0:00:57]} 31. Rb6 {[%emt 0:01:22]} (31. Nxh7+ $2 {too greedy.} Kg7 32. Rb6 Kxh7 $19) 31... Rxd5 {[%emt 0:00:28]} 32. Rxd5 {[%emt 0:00:01]} Rxd5 {[%emt 0:00:02]} 33. Rxb7 {[%emt 0:00:11]} ({Reject} 33. Nxh7+ $6 Ke8 $11) 33... Nc6 {[%emt 0:00:42]} 34. Nxh7+ {[%emt 0:00:09]} Kg7 {[%emt 0:00:15] [#]} 35. Ng5 $1 {[%emt 0:00:03]} Kf8 {[%emt 0:01:05]} 36. Rb6 {[%emt 0:00:57]} Nxa5 {[%emt 0:00:28]} 37. e6 {[%emt 0:00:49]} (37. Rxa6 $16 Rb5 38. Nf3) 37... f6 $11 {[%emt 0:00:16]} 38. Ne4 {[%emt 0:02:34]} Rd4 {[%emt 0:00:02]} 39. Nc3 {[%emt 0:00:19]} Nb3 {[%emt 0:01:09]} 40. Rb8+ {[%emt 0:00:15]} Kg7 {[%emt 0:00:10]} 41. Re8 {[%emt 0:30:03]} f5 {[%emt 0:02:28]} 42. Rxe7+ {[%emt 0:00:00]} Kf6 {[%emt 0:02:46]} 43. Re8 {[%emt 0:00:00]} (43. Ra7 {simplifies} Kxe6 44. Rxa6+ Kf7 45. Ra7+) 43... Nc5 {[%emt 0:04:18]} 44. e7 {[%emt 0:00:00]} Ne6 {[%emt 0:00:46]} 45. g3 {[%emt 0:00:00]} Rd3 {[%emt 0:04:50]} 46. Kf2 {[%emt 0:00:00]} Kf7 {[%emt 0:05:38]} 47. Ra8 {[%emt 0:00:00]} Kxe7 {[%emt 0:00:10]} 48. Ra7+ {[%emt 0:00:00]} Kf6 {[%emt 0:01:34]} 49. h4 {[%emt 0:00:00]} Nc5 {[%emt 0:00:57]} 50. Rc7 {[%emt 0:00:00]} Ne6 {[%emt 0:02:18]} 51. Rb7 {[%emt 0:00:00]} Rd2+ {[%emt 0:01:42]} 52. Ke1 {[%emt 0:00:00]} Rd3 {[%emt 0:00:03]} 53. Ra7 {[%emt 0:00:00]} Nc5 {[%emt 0:02:18]} 54. Rc7 {[%emt 0:00:00]} Ne6 {[%emt 0:00:24]} 55. Rb7 {[%emt 0:00:00]} Nc5 {[%emt 0:00:50]} 56. Rb6+ {[%emt 0:00:00]} Kf7 {[%emt 0:01:30]} 57. Rc6 {[%emt 0:00:40]} Ne6 {[%emt 0:01:23]} 58. Ne2 {[%emt 0:00:12]} Rb3 {[%emt 0:00:49]} 59. Rxa6 {[%emt 0:00:46]} Nc5 {[%emt 0:02:23]} 60. Rc6 {[%emt 0:03:54]} Ne4 {[%emt 0:00:11]} 61. Rc7+ {[%emt 0:02:00]} Kf6 {[%emt 0:00:17]} 62. Rc6+ {[%emt 0:03:13]} Kf7 {[%emt 0:00:12]} 63. Rc7+ {[%emt 0:01:17]} Kf6 {[%emt 0:00:01]} 1/2-1/2

[Event "Israel National League 2024"]
[Site "Israel"]
[Date "2024.02.09"]
[Round "5.15"]
[White "Iliaguev, Nisim"]
[Black "Smirin, Ilia"]
[Result "1/2-1/2"]
[ECO "A36"]
[WhiteElo "2399"]
[BlackElo "2582"]
[Annotator "TA"]
[PlyCount "85"]
[EventDate "2024.01.07"]
[EventType "team-tourn"]
[EventCountry "ISR"]
[SourceTitle "playchess.com"]
[Source "ChessBase"]
[SourceQuality "1"]
[TimeControl "40/5400+30:1800+30"]

{[%evp 17,85,38,51,28,41,8,14,0,54,-18,-28,-14,-29,-18,-13,-44,-35,-48,-60,-50,-64,-38,-32,-51,-39,-42,-44,-38,-38,-181,-176,-345,0,0,0,0,0,0,0,-13,-14,-116,-91,-116,-90,-107,-16,-27,-9,-62,-77,-229,-218,-181,-47,-36,-44,-28,-31,-58,0,-12,-8,-10,0,0,-6,-8,-15,-30]} 1. c4 {[%emt 0:10:18]} g6 {[%emt 0:01:26]} 2. g3 {[%emt 0:02:40]} Bg7 {[%emt 0:00:21]} 3. Bg2 {[%emt 0:00:05]} c5 {[%emt 0:01:29]} 4. Nc3 {[%emt 0:00:06]} Nc6 {[%emt 0:00:44]} 5. e3 {[%emt 0:00:09]} Nh6 {[%emt 0:03:04]} 6. Nge2 {[%emt 0:03:40]} Nf5 {[%emt 0:00:57]} 7. O-O {[%emt 0:00:18]} O-O {[%emt 0:02:19]} 8. a3 {[%emt 0:06:13]} d6 {[%emt 0:02:04]} 9. Rb1 {[%emt 0:03:16]} a5 {[%emt 0:00:34]} 10. Nb5 {[%emt 0:02:13]} e6 {[%emt 0:10:20]} 11. d4 {[%emt 0:03:52]} cxd4 {[%emt 0:00:15]} 12. exd4 {[%emt 0:03:07]} Qb6 {[%emt 0:01:36]} (12... d5 $11) 13. Bf4 {[%emt 0:09:10]} (13. d5 $14 exd5 14. Bxd5 (14. Qxd5 Ne5 $11)) 13... e5 $11 {[%emt 0:01:54]} 14. dxe5 {[%emt 0:06:31]} dxe5 {[%emt 0:00:31]} 15. Bd2 {[%emt 0:01:03]} Be6 {[%emt 0:06:42]} 16. Qa4 {[%emt 0:01:37]} Rad8 {[%emt 0:08:12]} 17. Rfd1 {[%emt 0:02:33]} Qc5 {[%emt 0:00:30]} 18. Rbc1 {[%emt 0:01:35][%cal Ob5c7] [#]} Rxd2 $1 {[%emt 0:01:07]} 19. Rxd2 {[%emt 0:00:10][%cal Od2d5]} Bh6 $1 {[%emt 0:00:04]} 20. Rdc2 {[%emt 0:07:09]} Bxc1 {[%emt 0:01:33]} 21. Rxc1 {[%emt 0:00:06]} Rd8 {[%emt 0:02:09] White must now prevent ...Rd2.} 22. Nc7 {[%emt 0:12:17]} Rd2 {[%emt 0:23:17][%csl LRb2,LRe2]} 23. Nxe6 {[%emt 0:01:42]} ({White must play} 23. Qb5 $1 $15 Qxb5 24. cxb5) 23... fxe6 $19 {[%emt 0:00:03]} 24. Qb5 $2 {[%emt 0:00:25] [#]} (24. Re1) 24... b6 $2 {[%emt 0:00:10]} ({Black should play} 24... Qf8 $1 $19 {...Nfd4 would now be deadly.} 25. Rf1 (25. Qxb7 $2 {loses.} Nfd4 $19) 25... Rxe2 26. Qxb7 Nd8) 25. Qxc6 $11 {[%emt 0:06:07]} Qxc6 {[%emt 0:03:14]} 26. Bxc6 {[%emt 0:00:02] Hoping for Kf1.} Rxe2 {[%emt 0:00:06][%mdl 4096] Endgame. KRB-KRN} 27. b4 {[%emt 0:04:17] Threatens to win with bxa5.} Nd4 {[%emt 0:00:18]} 28. Kf1 {[%emt 0:00:41] bxa5 is the strong threat.} Rb2 {[%emt 0:04:38]} 29. b5 {[%emt 0:04:16] [#]} (29. c5 $11 {keeps the balance.} axb4 (29... Nxc6 30. cxb6 axb4 31. axb4 $11) 30. axb4) 29... Nb3 $1 $17 {[%emt 0:00:27]} 30. Rc3 {[%emt 0:02:42]} Kf7 {[%emt 0:03:01]} 31. g4 {[%emt 0:02:47]} a4 {[%emt 0:03:12]} (31... g5 $17 32. Rf3+ Kg7) 32. g5 $11 {[%emt 0:01:21]} e4 {[%emt 0:01:14]} 33. Kg2 {[%emt 0:03:04]} (33. Rh3 $11) 33... Nc5 $15 {[%emt 0:00:08]} 34. Kg3 $2 {[%emt 0:01:19]} (34. Rh3 $17 {was worth a try.}) 34... Ke7 $19 {[%emt 0:02:27] And now ...Kd6 would win.} 35. Re3 {[%emt 0:00:35]} Rc2 {[%emt 0:03:51]} ({Black should try} 35... Kd6 $19 {aiming for ...Ke5.} 36. Bxe4 Nxe4+ 37. Rxe4 Rb3+ 38. f3 Rxa3) 36. Bxe4 $15 {[%emt 0:00:29]} Rxc4 {[%emt 0:00:06]} 37. Bc6 {[%emt 0:00:05]} Kd6 {[%emt 0:01:43]} 38. Rf3 {[%emt 0:00:12]} Ke7 {[%emt 0:01:21]} (38... e5 $15) 39. Re3 $11 {[%emt 0:00:01] The position is equal.} Rd4 {[%emt 0:00:21]} 40. h4 {[%emt 0:01:23]} Rd1 {[%emt 0:05:31]} 41. Kg4 {[%emt 0:30:52]} Rg1+ {[%emt 0:35:51]} 42. Kh3 {[%emt 0:00:00]} Rb1 {[%emt 0:00:00]} 43. h5 {[%emt 0:00:00] Weighted Error Value: White=0.31/Black=0.27 (precise) .  Missed win:     	---       	Black=1      Mistake:       	White=6     	Black=4      Inaccurate:     	White=2     	---        OK:         	White=14    	Black=13     Best:        	White=2     	Black=2      Strong:       	---       	Black=2} 1/2-1/2